bitfinex/quotes_SOLUSD_20241016
["timestamp","ask_amount","ask_price","bid_price","bid_amount"]
[1729085912712,20.0,154.63,154.62,0.626951]
[1729085913035,20.0,154.63,154.62,0.752441]
[1729085913331,20.0,154.63,154.62,0.626951]
[1729085913530,32.4537,154.69,154.62,0.626951]
[1729085913733,20.0,154.66,154.63,0.12549]
[1729085913904,16.2576,154.73,154.63,0.12549]
[1729085913905,20.0,154.72,154.63,0.12549]
[1729085914110,16.023,154.75,154.62,0.626951]
[1729085914315,6.4644,154.7,154.64,6.4662]
[1729085914516,6.4641,154.71,154.65,6.59159]
[1729085914738,6.4641,154.71,154.66,6.4657]
[1729085914916,16.3528,154.78,154.63,45.270384]
[1729085915120,6.4611,154.78,154.72,6.4631]
[1729085915319,6.68170938,154.79,154.69,16.1612]
[1729085915520,6.68170938,154.79,154.72,16.158]
[1729085915702,6.46,154.8,154.74,6.462]
[1729085915902,16.1458,154.84,154.71,28.7665]
[1729085915903,6.4617,154.76,154.71,28.7665]
[1729085916125,16.1486,154.82,154.71,22.3029]
[1729085916432,6.4611,154.78,154.74,0.12549]
[1729085916733,1.11555207,154.8,154.79,6.4603]
[1729085916906,6.4562,154.89,154.84,0.12549]
[1729085917107,1.11544566,154.89,154.86,6.4573]
[1729085917309,6.6741644,154.9,154.85,16.1445]
[1729085917541,1.11507737,154.94,154.85,16.1445]
[1729085917738,6.4549,154.92,154.86,6.4571]
[1729085917924,0.1,154.9,154.87,0.12549]
[1729085918121,0.2,154.92,154.77,20.0]
[1729085918321,6.4566,154.89,154.79,20.0]
[1729085918535,20.0,154.87,154.81,6.4591]
[1729085918836,20.0,154.93,154.82,16.1475]
[1729085919001,20.0,154.88,154.83,6.4585]
[1729085919204,20.0,154.88,154.82,16.1475]
[1729085919422,20.0,154.88,154.83,0.12549]
[1729085919610,20.0,154.88,154.83,6.58409]
[1729085919811,20.0,154.88,154.83,0.12549]
[1729085920027,1.11507737,154.94,154.83,0.12549]
[1729085920235,1.11507737,154.94,154.87,6.4569]
[1729085920437,6.4545,154.93,154.87,6.4569]
[1729085921041,1.11507737,154.94,154.88,0.12549]
[1729085921419,6.4553,154.92,154.86,0.12549]
[1729085921744,20.0,154.92,154.86,0.12549]
[1729085922236,6.457,154.87,154.82,6.52]
[1729085922440,6.457,154.87,154.82,12.9791]
[1729085922608,20.0,154.9,154.84,16.1455]
[1729085922816,20.0,154.9,154.86,0.12549]
[1729085922817,26.4558,154.9,154.86,0.12549]
[1729085923211,20.0,154.88,154.82,6.52]
[1729085923535,20.0,154.88,154.84,0.12549]
[1729085923835,20.0,154.9,154.85,6.4574]
[1729085924022,20.0,154.88,154.84,0.12549]
[1729085924221,6.4549,154.93,154.87,6.4569]
[1729085924429,26.4552,154.92,154.86,6.4574]
[1729085924719,6.4552,154.92,154.86,6.4574]
[1729085924924,6.4552,154.92,154.87,6.58249]
[1729085925124,20.0,154.91,154.87,6.58249]
[1729085925442,6.4563,154.89,154.86,0.12549]
[1729085925622,6.4549,154.92,154.87,6.4569]
[1729085925932,6.4549,154.92,154.88,0.12549]
[1729085926110,1.11507737,154.94,154.88,0.12549]
[1729085926310,6.4555,154.91,154.82,6.62]
[1729085926522,20.0,154.93,154.86,6.457]
[1729085926523,6.4549,154.92,154.86,6.457]
[1729085926726,20.0,154.93,154.89,6.456]
[1729085927058,7.56917737,154.94,154.84,6.4582]
[1729085927059,6.4562,154.89,154.84,6.4582]
[1729085927221,1.11507737,154.94,154.83,36.146]
[1729085927425,6.4548,154.93,154.84,0.12549]
[1729085928218,6.4548,154.93,154.89,0.12549]
[1729085928618,6.4557,154.91,154.89,0.12549]
[1729085928833,6.4557,154.91,154.86,22.6006]
[1729085929141,6.4557,154.91,154.87,0.12549]
[1729085929348,6.4566,154.88,154.87,0.12549]
[1729085929528,20.0,154.91,154.82,22.6668]
[1729085929719,20.0,154.91,154.85,0.12549]
[1729085930265,20.0,154.92,154.89,0.12549]
[1729085930443,6.455,154.92,154.89,0.12549]
[1729085930649,6.4545,154.93,154.89,0.12549]
[1729085930827,6.4541,154.94,154.89,6.4561]
[1729085931016,6.4546,154.93,154.88,6.4565]
[1729085931211,6.4541,154.94,154.89,6.4561]
[1729085931435,22.80699941,154.98,154.87,0.12549]
[1729085931740,6.4537,154.95,154.9,6.4557]
[1729085931931,6.4542,154.94,154.89,22.5957]
[1729085932131,6.4537,154.95,154.9,6.58109]
[1729085932532,16.134,154.96,154.83,15.0851]
[1729085932745,23.776884,154.96,154.84,20.0]
[1729085932942,6.4558,154.9,154.85,6.4578]
[1729085933260,6.4549,154.92,154.85,16.1438]
[1729085933420,39.910384,154.96,154.83,15.0851]
[1729085933620,39.910384,154.96,154.84,20.0]
[1729085933840,6.455,154.92,154.87,22.5982]
[1729085934121,20.0,154.92,154.88,6.58189]
[1729085934320,26.455,154.92,154.88,6.58189]
[1729085934546,1.11258334,154.97,154.89,16.1395]
[1729085934727,20.0,154.94,154.9,6.4553]
[1729085935552,6.66514925,155.0,154.89,23.876884]
[1729085935855,1.11077881,155.02,154.97,0.12549]
[1729085936024,22.3007,155.06,155.0,0.12549]
[1729085936025,6.45,155.04,155.0,0.12549]
[1729085936522,16.47830536,155.07,154.98,0.12549]
[1729085936717,6.4504,155.03,154.98,6.4524]
[1729085937128,6.4504,155.03,154.99,0.12549]
[1729085937322,6.4499,155.04,154.99,6.57749]
[1729085937517,6.4494,155.06,155.01,0.12549]
[1729085937718,6.66796174,155.09,155.03,0.12549]
[1729085938024,6.66796174,155.09,155.05,6.4494]
[1729085938226,23.191451,155.16,155.0,0.1]
[1729085938432,6.447,155.12,155.06,0.12549]
[1729085938756,6.4485,155.08,155.06,0.12549]
[1729085939124,6.4485,155.08,155.03,0.12549]
[1729085939453,20.0,155.09,155.03,0.12549]
[1729085939636,6.4495,155.05,154.98,20.0]
[1729085939951,20.0,155.09,154.99,0.12549]
[1729085940161,6.449,155.07,155.02,0.12549]
[1729085940320,20.0,155.09,155.02,0.12549]
[1729085940523,6.4495,155.06,155.0,6.57709]
[1729085940724,6.4499,155.04,155.0,0.12549]
[1729085941165,6.4509,155.02,154.97,6.6064]
[1729085941848,6.4509,155.02,154.98,0.12549]
[1729085942047,6.4517,155.0,154.94,6.4537]
[1729085942347,23.776884,155.03,154.93,6.5662]
[1729085942549,23.776884,155.01,154.94,0.12549]
[1729085942730,6.4524,154.99,154.94,6.57939]
[1729085942935,6.4524,154.99,154.94,0.12549]
[1729085943237,6.4507,155.03,154.98,6.4523]
[1729085943453,6.451,155.02,154.99,0.12549]
[1729085943628,6.4516,155.0,154.99,0.12549]
[1729085943959,6.4522,154.99,154.93,13.0203]
[1729085944162,6.4536,154.96,154.89,6.5519]
[1729085944367,6.452,154.99,154.93,6.4541]
[1729085944662,6.4537,154.95,154.91,16.1383]
[1729085944829,20.0,154.98,154.91,16.1383]
[1729085945029,20.0,154.98,154.89,6.5519]
[1729085945030,23.776884,154.97,154.89,6.5519]
[1729085945273,6.4545,154.94,154.89,13.008]
[1729085945763,6.4537,154.95,154.9,6.4554]
[1729085945933,23.776884,154.97,154.89,6.5519]
[1729085946127,6.4565,154.89,154.84,6.4582]
[1729085946449,6.4554,154.91,154.86,6.4573]
[1729085946744,26.4533,154.96,154.91,6.455]
[1729085947132,6.4533,154.96,154.91,6.455]
[1729085947360,21.5742,155.03,154.9,0.12549]
[1729085947663,6.4515,155.01,154.97,0.12549]
[1729085948656,20.0,155.0,154.97,0.12549]
[1729085948829,6.4515,155.01,154.97,0.12549]
[1729085949031,6.4515,155.01,154.96,6.57859]
[1729085949241,22.79615642,155.06,154.96,0.12549]
[1729085949559,6.4507,155.03,154.99,0.12549]
[1729085949947,6.4508,155.02,154.99,0.12549]
[1729085950551,6.4508,155.02,154.96,0.12549]
[1729085950760,6.4498,155.05,154.99,0.12549]
[1729085950932,16.1229,155.06,154.95,16.1338]
[1729085951335,6.4507,155.02,154.98,0.12549]
[1729085951543,20.0,155.07,155.0,0.12549]
[1729085951757,20.0,155.07,154.93,0.2]
[1729085951758,6.4522,154.99,154.93,20.0]
[1729085951958,6.4513,155.01,154.96,6.4531]
[1729085952269,6.4513,155.01,154.93,20.0]
[1729085952270,6.4505,155.03,154.99,0.12549]
[1729085952780,6.4515,155.01,154.98,0.12549]
[1729085953666,6.4495,155.05,155.01,0.12549]
[1729085953848,6.45,155.04,155.01,0.12549]
[1729085954244,15.9799,155.08,154.95,0.1]
[1729085954455,15.9799,155.08,154.87,6.6249]
[1729085954456,6.0986,155.03,154.87,6.6249]
[1729085954644,16.1297,155.0,154.88,16.1411]
[1729085954837,16.1276,155.02,154.88,16.1411]
[1729085955039,20.0,154.96,154.88,16.1411]
[1729085955335,20.0,154.96,154.9,0.12549]
[1729085955535,6.4535,154.96,154.88,16.1411]
[1729085955838,6.67201488,155.01,154.91,16.2377]
[1729085956040,13.12331488,155.01,154.95,0.12549]
[1729085956253,6.4527,154.98,154.95,0.12549]
[1729085956453,6.67201488,155.01,154.95,0.12549]
[1729085956662,6.67201488,155.01,154.92,20.0]
[1729085956862,6.67201488,155.01,154.94,20.12549]
[1729085956863,6.4512,155.01,154.94,20.12549]
[1729085957467,0.1,155.06,154.94,20.12549]
[1729085957665,6.4528,154.97,154.92,20.0]
[1729085957874,6.4528,154.97,154.87,70.89840358]
[1729085957875,6.4535,154.96,154.88,23.776884]
[1729085958042,6.4535,154.96,154.88,23.876884]
[1729085958244,6.4522,154.99,154.91,16.1383]
[1729085958455,6.4522,154.99,154.92,6.4549]
[1729085958964,21.11090262,155.02,154.91,16.1383]
[1729085959172,20.0,155.02,154.93,0.12549]
[1729085959468,23.776884,155.04,154.95,0.12549]
[1729085959668,13.11918466,155.07,155.01,0.12549]
[1729085959975,6.4491,155.06,155.01,0.12549]
[1729085960296,6.4491,155.06,154.98,6.57759]
[1729085960452,6.4495,155.05,155.0,0.12549]
[1729085962364,6.4507,155.03,154.98,20.0]
[1729085962549,6.4507,155.03,154.99,0.12549]
[1729085962746,6.4517,155.0,154.94,26.4537]
[1729085963071,6.4507,155.02,154.97,6.57809]
[1729085963368,41.9217,155.03,154.89,12.6705]
[1729085963565,20.0,155.01,154.89,6.2147]
[1729085963773,20.0,155.01,154.89,6.4147]
[1729085963958,23.776884,155.04,154.91,0.1]
[1729085964168,20.0,155.07,154.91,0.2]
[1729085964349,6.4512,155.01,154.97,0.12549]
[1729085964552,23.776884,155.06,154.97,0.12549]
[1729085964553,20.0,155.04,154.97,0.12549]
[1729085964755,6.4516,155.0,154.95,0.12549]
[1729085965459,6.452,154.99,154.95,0.12549]
[1729085965659,6.4516,155.0,154.95,0.12549]
[1729085965878,6.4516,155.0,154.95,6.57909]
[1729085966071,16.1245,155.05,154.97,0.12549]
[1729085966480,6.4502,155.04,154.99,0.12549]
[1729085966883,6.4491,155.06,155.0,6.4515]
[1729085967065,23.89556929,155.11,155.01,0.12549]
[1729085967261,6.4495,155.05,155.01,0.12549]
[1729085968755,6.4507,155.02,154.99,6.2164]
[1729085968957,6.4507,155.02,155.0,0.12549]
[1729085969668,6.4515,155.01,154.98,0.12549]
[1729085969973,6.4508,155.02,154.98,0.12549]
[1729085970153,6.45,155.04,154.99,6.4519]
[1729085970353,16.1222,155.07,154.97,23.902374]
[1729085970354,16.1222,155.07,155.0,0.12549]
[1729085970554,6.4504,155.03,155.0,0.12549]
[1729085970781,6.4501,155.04,154.99,0.12549]
[1729085971164,20.0,155.06,154.99,0.12549]
[1729085971482,6.4525,154.98,154.92,28.6718]
[1729085971858,6.4521,154.99,154.93,6.57989]
[1729085972076,6.4521,154.99,154.93,6.4544]
[1729085972381,20.0,155.02,154.94,16.1346]
[1729085972382,6.4513,155.01,154.94,16.1346]
[1729085972560,6.4513,155.01,154.95,6.57909]
[1729085972884,6.4516,155.0,154.95,6.57899]
[1729085973194,6.4512,155.01,154.95,6.57899]
[1729085973478,36.1254,155.04,154.95,6.57899]
[1729085973479,6.4516,155.0,154.95,6.57899]
[1729085973679,6.4511,155.02,154.97,0.12549]
[1729085973891,23.776884,155.04,154.97,0.12549]
[1729085974177,6.4515,155.01,154.96,0.12549]
[1729085974384,6.4516,155.0,154.96,0.12549]
[1729085974686,6.4516,155.0,154.94,22.5883]
[1729085974860,6.4516,155.0,154.95,6.4535]
[1729085975182,6.64649943,155.07,154.96,0.32549]
[1729085975358,0.1,155.14,155.01,0.12549]
[1729085975559,6.4495,155.05,155.01,0.12549]
[1729085975780,16.1193,155.1,154.99,26.4519]
[1729085976083,6.45,155.04,154.99,26.4519]
[1729085976455,16.1193,155.1,155.0,0.12549]
[1729085976656,6.64328726,155.14,155.02,6.57619]
[1729085976657,6.4486,155.08,155.02,6.57619]
[1729085976886,16.1156,155.13,155.04,0.12549]
[1729085977056,6.4488,155.07,155.04,0.12549]
[1729085977370,16.1156,155.13,155.03,0.12549]
[1729085977754,33.34630951,155.11,154.98,20.0]
[1729085977957,6.4503,155.03,154.98,26.4524]
[1729085978477,6.4503,155.03,154.99,0.12549]
[1729085978687,6.4514,155.01,154.97,6.6341]
[1729085978855,16.1246,155.05,154.94,22.5892]
[1729085979058,6.4521,154.99,154.94,16.1352]
[1729085979389,16.1269,155.03,154.92,21.7292]
[1729085979767,20.0,155.02,154.92,21.7292]
[1729085979981,6.4521,154.99,154.93,6.4542]
[1729085980159,6.4521,154.99,154.94,20.0]
[1729085980485,6.4525,154.98,154.94,20.0]
[1729085980863,6.4525,154.98,154.95,0.12549]
[1729085981063,43.776884,155.04,154.95,0.12549]
[1729085981265,6.4519,155.0,154.97,0.12549]
[1729085982070,20.0,155.04,154.96,0.12549]
[1729085982390,6.4532,154.96,154.92,6.5435]
[1729085982696,6.4541,154.94,154.9,16.139]
[1729085983186,6.455,154.92,154.87,22.4484]
[1729085983373,6.455,154.92,154.81,0.2]
[1729085983374,6.4562,154.89,154.83,12.7644]
[1729085983580,0.1,155.0,154.85,0.12549]
[1729085983581,6.4557,154.9,154.85,0.12549]
[1729085983784,16.135,154.95,154.85,0.12549]
[1729085983785,6.4554,154.91,154.85,6.58319]
[1729085984286,6.4554,154.91,154.85,6.4577]
[1729085984490,43.776884,154.92,154.8,16.1494]
[1729085984859,6.4596,154.81,154.76,16.1533]
[1729085985256,6.4599,154.8,154.74,6.4624]
[1729085985458,6.4607,154.79,154.73,22.5866]
[1729085985882,6.4607,154.79,154.74,0.12549]
[1729085986274,6.4614,154.77,154.71,6.4636]
[1729085986483,43.776884,154.83,154.69,16.1603]
[1729085986705,6.4615,154.77,154.71,6.4637]
[1729085987203,16.1493,154.81,154.68,6.0337]
[1729085987379,43.776884,154.8,154.68,6.0337]
[1729085987584,6.4604,154.79,154.69,16.28659]
[1729085987896,6.4608,154.78,154.69,22.75069]
[1729085988100,6.4612,154.77,154.69,22.6252]
[1729085988596,6.4612,154.77,154.7,6.58949]
[1729085989102,20.0,154.78,154.71,6.4636]
[1729085989296,23.776884,154.77,154.69,16.1611]
[1729085989478,20.0,154.78,154.69,16.1611]
[1729085989679,23.776884,154.8,154.69,16.1611]
[1729085989884,20.0,154.79,154.7,0.12549]
[1729085990388,6.4612,154.77,154.7,6.58939]
[1729085990582,6.4622,154.75,154.69,16.1611]
[1729085990890,6.4624,154.74,154.67,6.465]
[1729085991091,6.4629,154.73,154.66,6.4657]
[1729085991286,6.4629,154.73,154.67,6.4653]
[1729085991500,6.4624,154.74,154.67,6.4653]
[1729085991882,6.4624,154.74,154.68,0.12549]
[1729085992086,6.4624,154.74,154.67,6.4653]
[1729085992499,6.462,154.75,154.68,6.59039]
[1729085992709,20.0,154.74,154.68,6.59039]
[1729085994308,23.0096,154.82,154.67,0.1]
[1729085994309,22.8096,154.82,154.67,0.1]
[1729085994815,6.462,154.75,154.7,16.1601]
[1729085995016,6.462,154.75,154.63,6.4843]
[1729085995017,6.027,154.78,154.58,16.1719]
[1729085995216,0.3,154.68,154.49,0.1]
[1729085995413,15.2239,154.65,154.55,2.68283921]
[1729085995606,15.2239,154.65,154.5,16.1801]
[1729085995798,23.776884,154.64,154.5,16.1801]
[1729085996001,23.776884,154.64,154.54,16.1764]
[1729085996203,20.0,154.63,154.54,16.1764]
[1729085996508,20.0,154.64,154.5,16.281]
[1729085996809,6.4715,154.53,154.47,0.626951]
[1729085997020,0.1,154.57,154.47,0.626951]
[1729085997307,52.3455,154.59,154.47,0.626951]
[1729085997308,20.0,154.5,154.47,0.626951]
[1729085997518,23.776884,154.49,154.35,16.1961]
[1729085997722,6.4738,154.47,154.37,6.4777]
[1729085998026,6.4738,154.47,154.36,6.478]
[1729085998188,20.0,154.45,154.31,0.626951]
[1729085998389,20.0,154.45,154.37,6.4776]
[1729085998722,26.4747,154.45,154.34,16.1974]
[1729085998889,26.4747,154.45,154.34,22.6764]
[1729085998890,6.4755,154.43,154.34,22.6764]
[1729085999091,6.4755,154.43,154.35,0.12549]
[1729085999287,20.0,154.45,154.34,13.6974]
[1729085999508,20.0,154.43,154.34,20.1763]
[1729085999792,20.0,154.43,154.35,6.4785]
[1729086000005,20.0,154.43,154.32,0.1]
[1729086000205,20.0,154.43,154.33,6.4794]
[1729086000406,20.0,154.45,154.37,6.4777]
[1729086000729,6.63739662,154.46,154.38,0.1]
[1729086001019,6.63739662,154.46,154.38,0.12549]
[1729086001227,6.63739662,154.46,154.39,6.4769]
[1729086001399,6.63739662,154.46,154.41,6.60149]
[1729086001597,6.63739662,154.46,154.36,20.0]
[1729086001809,13.11169662,154.46,154.38,6.4772]
[1729086002188,6.63739662,154.46,154.36,6.478]
[1729086002389,6.63739662,154.46,154.35,0.1]
[1729086002626,6.63739662,154.46,154.39,6.4769]
[1729086002806,6.63739662,154.46,154.4,6.4764]
[1729086003124,6.63739662,154.46,154.38,16.2938]
[1729086003125,6.63739662,154.46,154.39,6.60239]
[1729086003303,6.63739662,154.46,154.42,6.4757]
[1729086003499,6.63739662,154.46,154.44,6.4749]
[1729086003827,6.63739662,154.46,154.43,6.4752]
[1729086004002,6.63739662,154.46,154.4,6.2563]
[1729086004003,13.11159662,154.46,154.4,6.1563]
[1729086004208,13.11159662,154.46,154.34,0.1]
[1729086004209,6.63739662,154.46,154.34,6.3395]
[1729086004397,6.63739662,154.46,154.36,26.4782]
[1729086004398,6.4751,154.44,154.36,26.4782]
[1729086004602,6.63739662,154.46,154.36,20.0]
[1729086004804,6.4748,154.45,154.37,6.4778]
[1729086004999,6.63739662,154.46,154.34,16.1976]
[1729086005200,6.4748,154.45,154.37,6.4778]
[1729086005403,6.63739662,154.46,154.33,0.2]
[1729086005613,6.63739662,154.46,154.37,16.1942]
[1729086006019,6.63739662,154.46,154.38,0.12549]
[1729086006524,6.63739662,154.46,154.4,6.4766]
[1729086006820,6.63739662,154.46,154.42,0.12549]
[1729086007503,6.63739662,154.46,154.41,23.776884]
[1729086007504,6.63739662,154.46,154.45,0.12549]
[1729086007705,6.63739662,154.46,154.45,30.376874]
[1729086007928,6.63739662,154.46,154.45,0.12549]
[1729086008929,6.63739662,154.46,154.42,6.4758]
[1729086008930,6.63739662,154.46,154.37,0.1]
[1729086009223,6.63739662,154.46,154.42,0.12549]
[1729086010709,6.63739662,154.46,154.44,0.12549]
[1729086010907,6.63739662,154.46,154.44,23.902374]
[1729086011102,6.63739662,154.46,154.45,0.1]
[1729086011412,6.63739662,154.46,154.45,30.702364]
[1729086011823,6.4698,154.57,154.51,0.1]
[1729086012127,16.1705,154.61,154.5,23.776884]
[1729086012634,6.4734,154.48,154.43,0.1]
[1729086012935,16.1761,154.55,154.43,0.1]
[1729086013121,6.4728,154.5,154.42,23.976884]
[1729086013324,6.4759,154.42,154.33,6.4793]
[1729086013526,32.2958,154.49,154.37,0.1]
[1729086013728,32.2958,154.49,154.33,16.2983]
[1729086014032,6.4773,154.39,154.31,0.626951]
[1729086014237,6.4766,154.41,154.32,0.12549]
[1729086014423,6.4767,154.4,154.31,0.626951]
[1729086014738,20.0,154.45,154.31,0.626951]
[1729086015037,20.0,154.45,154.28,0.1]
[1729086015038,0.496049,154.29,154.28,0.2]
[1729086015216,0.496049,154.29,154.28,6.5817]
[1729086015539,0.496049,154.29,154.28,6.6817]
[1729086016938,0.496049,154.29,154.28,30.709564]
[1729086017338,0.496049,154.29,154.24,77.39675963]
[1729086017339,0.496049,154.29,154.24,6.7533]
[1729086017724,0.496049,154.29,154.26,6.4824]
[1729086017928,0.496049,154.29,154.25,6.4828]
[1729086018135,0.496049,154.29,154.26,0.12549]
[1729086018344,0.496049,154.29,154.24,6.1533]
[1729086018519,0.496049,154.29,154.28,6.5817]
[1729086018849,0.496049,154.29,154.28,0.12549]
[1729086019026,0.496049,154.29,154.24,6.1533]
[1729086019218,0.496049,154.29,154.25,6.70829]
[1729086019424,0.496049,154.29,154.26,6.4824]
[1729086019626,0.496049,154.29,154.25,0.22549]
[1729086019940,0.496049,154.29,154.28,6.70719]
[1729086020241,0.496049,154.29,154.28,6.80719]
[1729086020432,0.496049,154.29,154.28,30.709564]
[1729086020740,0.1,154.48,154.28,30.709564]
[1729086020741,16.184,154.48,154.32,16.2999]
[1729086021242,16.184,154.48,154.33,0.22549]
[1729086021539,6.475,154.44,154.36,6.5783]
[1729086021743,6.4754,154.43,154.37,0.12549]
[1729086022045,6.4767,154.4,154.37,0.12549]
[1729086022421,6.4767,154.4,154.33,6.60509]
[1729086022620,16.1865,154.45,154.34,23.776884]
[1729086022853,1.12264256,154.47,154.34,23.776884]
[1729086023028,6.4766,154.4,154.34,23.776884]
[1729086023227,6.4767,154.4,154.35,0.12549]
[1729086023742,6.4762,154.41,154.35,0.12549]
[1729086023920,16.1854,154.46,154.35,0.12549]
[1729086024131,6.4759,154.42,154.37,0.12549]
[1729086024329,6.4751,154.44,154.38,23.776884]
[1729086024526,6.4747,154.45,154.39,0.12549]
[1729086024728,1.12264256,154.47,154.39,0.12549]
[1729086025227,1.12264256,154.47,154.38,23.776884]
[1729086025228,1.12264256,154.47,154.41,0.12549]
[1729086025452,6.74300218,154.48,154.45,6.4745]
[1729086025652,1.12222699,154.52,154.41,0.12549]
[1729086025959,32.2771,154.55,154.4,0.32549]
[1729086026173,32.2771,154.55,154.41,0.32549]
[1729086026340,6.4726,154.5,154.44,23.776884]
[1729086026661,6.4729,154.49,154.45,0.12549]
[1729086026851,6.472,154.51,154.45,6.59989]
[1729086027050,32.2771,154.55,154.45,6.59989]
[1729086027051,16.101,154.55,154.46,23.776884]
[1729086027433,16.101,154.55,154.47,0.12549]
[1729086027829,6.4716,154.53,154.47,0.12549]
[1729086028063,1.1221684,154.56,154.47,0.1]
[1729086028256,6.4703,154.56,154.5,6.4723]
[1729086028442,6.4711,154.54,154.48,22.6554]
[1729086028653,17.66493638,154.62,154.45,16.1862]
[1729086028654,0.2,154.61,154.45,16.1862]
[1729086028958,6.4725,154.5,154.44,6.4749]
[1729086029168,6.4732,154.49,154.43,6.60079]
[1729086029537,16.1779,154.54,154.43,0.12549]
[1729086029738,6.4712,154.54,154.48,6.4729]
[1729086029938,6.4703,154.56,154.47,0.1]
[1729086030257,6.4696,154.57,154.51,6.4719]
[1729086030458,6.4691,154.58,154.51,16.1793]
[1729086030764,6.4691,154.58,154.53,0.12549]
[1729086030765,6.4692,154.58,154.53,0.12549]
[1729086030933,16.4429,154.62,154.53,0.12549]
[1729086031137,6.4695,154.57,154.53,0.12549]
[1729086031754,16.4429,154.62,154.53,0.12549]
[1729086032475,6.4691,154.58,154.53,6.59659]
[1729086032968,6.4679,154.61,154.55,6.59579]
[1729086033176,6.4679,154.61,154.56,6.4699]
[1729086033468,6.4675,154.62,154.57,0.12549]
[1729086033659,6.467,154.63,154.57,0.12549]
[1729086033862,16.1634,154.67,154.6,0.12549]
[1729086034063,6.4666,154.64,154.6,0.12549]
[1729086034246,0.626951,154.7,154.63,6.467]
[1729086034443,6.465,154.68,154.64,0.12549]
[1729086034845,6.465,154.68,154.63,0.12549]
[1729086036543,6.4683,154.6,154.54,6.4707]
[1729086036761,0.626951,154.7,154.58,16.172]
[1729086036946,6.4652,154.68,154.62,6.4672]
[1729086037155,0.626951,154.7,154.62,6.4672]
[1729086037544,0.626951,154.7,154.61,16.1694]
[1729086037545,6.466,154.66,154.63,0.12549]
[1729086037764,6.4649,154.68,154.63,0.12549]
[1729086038072,6.4649,154.68,154.63,6.59239]
[1729086038279,0.626951,154.7,154.65,0.12549]
[1729086038480,7.091351,154.7,154.65,0.12549]
[1729086038790,6.4657,154.66,154.61,16.1694]
[1729086038972,6.4658,154.66,154.62,0.12549]
[1729086039144,6.4662,154.65,154.62,0.12549]
[1729086039349,6.4683,154.6,154.52,32.3568]
[1729086039575,6.4683,154.6,154.54,22.6467]
[1729086039776,6.4679,154.61,154.55,6.59569]
[1729086039962,16.1654,154.66,154.54,16.1761]
[1729086040284,0.1,154.69,154.49,15.8332]
[1729086040285,16.1677,154.63,154.49,15.9332]
[1729086040454,16.1677,154.63,154.5,8.33336194]
[1729086040650,6.4682,154.61,154.54,6.4704]
[1729086040851,6.4674,154.63,154.56,6.4696]
[1729086041155,6.4683,154.6,154.55,6.4703]
[1729086041470,6.4675,154.62,154.57,0.12549]
[1729086041670,20.0,154.65,154.54,22.6469]
[1729086041671,6.4684,154.6,154.54,22.6469]
[1729086041889,16.1616,154.69,154.58,6.4689]
[1729086042174,16.1616,154.69,154.56,16.174]
[1729086042175,20.0,154.68,154.57,0.12549]
[1729086042472,6.4662,154.65,154.59,6.4684]
[1729086042677,6.4662,154.65,154.6,0.12549]
[1729086043672,6.4662,154.65,154.6,6.4681]
[1729086044359,6.4662,154.65,154.61,0.12549]
[1729086045059,6.4662,154.65,154.6,0.12549]
[1729086045577,6.4662,154.65,154.6,6.4682]